fUST/lending_fUST_20250314
["ID","MTS","AMOUNT","RATE_DAILY","PERIOD"]
[356146978,1741965226586,-500.0,8.219e-05,2]
[356146979,1741965226611,-500.0,8.219e-05,2]
[356146980,1741965226631,-500.0,8.219e-05,2]
[356146981,1741965226652,-500.0,8.219e-05,2]
[356146982,1741965226675,-912.99,8.219e-05,2]
[356146983,1741965226696,-683.86,8.219e-05,2]
[356146984,1741965226717,-558.83,8.219e-05,2]
[356146985,1741965226747,-540.8,8.219e-05,2]
[356146986,1741965226768,-500.0,8.219e-05,2]
[356146987,1741965226789,-568.33,8.219e-05,2]
[356146988,1741965226810,-1414.14,8.219e-05,2]
[356146989,1741965226831,-500.0,8.219e-05,2]
[356146990,1741965226853,-612.66661029,8.219e-05,2]
[356146991,1741965226875,-500.0,8.219e-05,2]
[356146992,1741965226897,-500.0,8.219e-05,2]
[356146993,1741965226918,-500.0,8.219e-05,2]
[356146994,1741965226939,-1940.05,8.219e-05,2]
[356146995,1741965226962,-799.52,8.219e-05,2]
[356146996,1741965226983,-500.0,8.219e-05,2]
[356146997,1741965227005,-500.0,8.219e-05,2]
[356146998,1741965227026,-637.86,8.219e-05,2]
[356146999,1741965227047,-500.0,8.219e-05,2]
[356147000,1741965227070,-415.24577086,8.219e-05,2]
[356147001,1741965227092,-500.0,8.219e-05,2]
[356147002,1741965227113,-150.75857848,8.219e-05,2]
[356147003,1741965227136,-500.0,8.219e-05,2]
[356147004,1741965227157,-500.0,8.219e-05,2]
[356147005,1741965227178,-500.0,8.219e-05,2]
[356147006,1741965227201,-500.0,8.219e-05,2]
[356147007,1741965227224,-500.0,8.219e-05,2]
[356147008,1741965227247,-672.17,8.219e-05,2]
[356147009,1741965227267,-500.0,8.219e-05,2]
[356147010,1741965227290,-500.0,8.219e-05,2]
[356147011,1741965227311,-500.0,8.219e-05,2]
[356147012,1741965227332,-500.0,8.219e-05,2]
[356147013,1741965227354,-500.0,8.219e-05,2]
[356147014,1741965227378,-1343.46,8.219e-05,2]
[356147015,1741965227399,-500.0,8.219e-05,2]
[356147016,1741965227421,-500.0,8.219e-05,2]
[356147017,1741965227443,-500.0,8.219e-05,2]
[356147018,1741965227464,-702.72,8.219e-05,2]
[356147019,1741965227487,-844.76,8.219e-05,2]
[356147020,1741965227508,-500.0,8.219e-05,2]
[356147021,1741965227530,-500.0,8.219e-05,2]
[356147022,1741965227552,-500.0,8.219e-05,2]
[356147023,1741965227573,-1239.12,8.219e-05,2]
[356147024,1741965227594,-500.0,8.219e-05,2]
[356147025,1741965227615,-500.0,8.219e-05,2]
[356147026,1741965227635,-500.0,8.219e-05,2]
[356147027,1741965227656,-500.0,8.219e-05,2]
[356147028,1741965227678,-500.0,8.219e-05,2]
[356147029,1741965227699,-500.0,8.219e-05,2]
[356147030,1741965227720,-500.0,8.219e-05,2]
[356147031,1741965227744,-512.848137,8.219e-05,2]
[356147032,1741965227765,-500.0,8.219e-05,2]
[356147033,1741965227786,-500.0,8.219e-05,2]
[356147034,1741965227808,-500.0,8.219e-05,2]
[356147035,1741965227831,-978.21,8.219e-05,2]
[356147036,1741965227862,-500.0,8.219e-05,2]
[356147037,1741965227884,-500.0,8.219e-05,2]
[356147038,1741965227907,-597.37,8.219e-05,2]
[356147039,1741965227930,-533.14,8.219e-05,2]
[356147040,1741965227953,-500.0,8.219e-05,2]
[356147041,1741965227975,-500.0,8.219e-05,2]
[356147042,1741965227999,-715.8,8.219e-05,2]
[356147043,1741965228021,-500.0,8.219e-05,2]
[356147044,1741965228044,-500.0,8.219e-05,2]
[356147045,1741965228067,-500.0,8.219e-05,2]
[356147046,1741965228090,-494.08663203,8.219e-05,2]
[356147047,1741965228114,-689.47,8.219e-05,2]
[356147048,1741965228137,-500.0,8.219e-05,2]
[356147049,1741965228160,-500.0,8.219e-05,2]
[356147050,1741965228183,-500.0,8.219e-05,2]
[356147051,1741965228206,-500.0,8.219e-05,2]
[356147052,1741965228228,-500.0,8.219e-05,2]
[356147053,1741965228251,-500.0,8.219e-05,2]
[356147054,1741965228275,-500.0,8.219e-05,2]
[356147055,1741965228298,-500.0,8.219e-05,2]
[356147056,1741965228320,-748.33,8.219e-05,2]
[356147057,1741965228343,-500.0,8.219e-05,2]
[356147058,1741965228366,-1388.0,8.219e-05,2]
[356147059,1741965228389,-508.15680173,8.219e-05,2]
[356147060,1741965228411,-500.0,8.219e-05,2]
[356147061,1741965228433,-603.69,8.219e-05,2]
[356147062,1741965228456,-500.0,8.219e-05,2]
[356147063,1741965228479,-500.0,8.219e-05,2]
[356147064,1741965228504,-500.0,8.219e-05,2]
[356147065,1741965228526,-500.0,8.219e-05,2]
[356147066,1741965228548,-500.0,8.219e-05,2]
[356147067,1741965228572,-500.0,8.219e-05,2]
[356147068,1741965228596,-500.0,8.219e-05,2]
[356147069,1741965228619,-500.0,8.219e-05,2]
[356147070,1741965228641,-500.0,8.219e-05,2]
[356147071,1741965228664,-500.0,8.219e-05,2]
[356147072,1741965228687,-503.89,8.219e-05,2]
[356147073,1741965228709,-500.0,8.219e-05,2]
[356147074,1741965228734,-586.6,8.219e-05,2]
[356147075,1741965228755,-500.0,8.219e-05,2]
[356147076,1741965228778,-500.0,8.219e-05,2]
[356147077,1741965228800,-500.0,8.219e-05,2]
[356147078,1741965228824,-500.0,8.219e-05,2]
[356147079,1741965228847,-500.0,8.219e-05,2]
[356147080,1741965228871,-500.0,8.219e-05,2]
[356147081,1741965228893,-502.2236081,8.219e-05,2]
[356147082,1741965228916,-500.0,8.219e-05,2]
[356147083,1741965228940,-500.0,8.219e-05,2]
[356147084,1741965228964,-502.75102972,8.219e-05,2]
[356147085,1741965228989,-500.0,8.219e-05,2]
[356147086,1741965229012,-500.0,8.219e-05,2]
[356147087,1741965229036,-500.0,8.219e-05,2]
[356147088,1741965229058,-500.0,8.219e-05,2]
[356147089,1741965229081,-828.43,8.219e-05,2]
[356147090,1741965229105,-500.0,8.219e-05,2]
[356147091,1741965229129,-623.27748856,8.219e-05,2]
[356147092,1741965229152,-346.91487982,8.219e-05,2]
[356147093,1741965229174,-504.25624946,8.219e-05,2]
[356147094,1741965229199,-1146.79,8.219e-05,2]
[356147095,1741965229222,-500.0,8.219e-05,2]
[356147096,1741965229247,-714.97,8.219e-05,2]
[356147097,1741965229271,-635.76,8.219e-05,2]
[356147098,1741965229295,-500.0,8.219e-05,2]
[356147099,1741965229319,-500.0,8.219e-05,2]
[356147100,1741965229342,-500.0,8.219e-05,2]
[356147101,1741965229365,-500.0,8.219e-05,2]
[356147102,1741965229389,-1301.99,8.219e-05,2]
[356147103,1741965229412,-553.5,8.219e-05,2]
[356147104,1741965229434,-500.0,8.219e-05,2]
[356147105,1741965229456,-502.19055483,8.219e-05,2]
[356147106,1741965229479,-615.14,8.219e-05,2]
[356147107,1741965229504,-588.43,8.219e-05,2]
[356147108,1741965229528,-1528.76,8.219e-05,2]
[356147109,1741965229550,-237.0219442,8.219e-05,2]
[356147110,1741965229573,-507.25125681,8.219e-05,2]
[356147111,1741965229596,-167.53675784,8.219e-05,2]
[356147112,1741965229618,-500.0,8.219e-05,2]
[356147113,1741965229641,-830.55,8.219e-05,2]
[356147114,1741965229663,-500.0,8.219e-05,2]
[356147115,1741965229686,-18947.76,8.219e-05,2]
[356147116,1741965229706,-506.94281823,8.219e-05,2]
[356147117,1741965229728,-500.0,8.219e-05,2]
[356147118,1741965229752,-1022.83,8.219e-05,2]
[356147119,1741965229774,-500.0,8.219e-05,2]
[356147120,1741965229795,-500.0,8.219e-05,2]
[356147121,1741965229816,-500.0,8.219e-05,2]
[356147122,1741965229838,-1325.72,8.219e-05,2]
[356147123,1741965229865,-818.29,8.219e-05,2]
[356147124,1741965229887,-500.0,8.219e-05,2]
[356147125,1741965229910,-500.0,8.219e-05,2]
[356147126,1741965229934,-517.70706712,8.219e-05,2]
[356147127,1741965229956,-500.0,8.219e-05,2]
[356147128,1741965229979,-500.0,8.219e-05,2]
[356147129,1741965230004,-945.05,8.219e-05,2]
[356147130,1741965230027,-500.0,8.219e-05,2]
[356147131,1741965230049,-869.54,8.219e-05,2]
[356147132,1741965230071,-500.0,8.219e-05,2]
[356147133,1741965230093,-565.24,8.219e-05,2]
[356147134,1741965230116,-508.72228827,8.219e-05,2]
[356147135,1741965230137,-500.0,8.219e-05,2]
[356147136,1741965230159,-2417.43,8.219e-05,2]
[356147137,1741965230180,-840.47,8.219e-05,2]
[356147138,1741965230202,-514.12472424,8.219e-05,2]
[356147139,1741965230224,-500.0,8.219e-05,2]
[356147140,1741965230247,-500.0,8.219e-05,2]
[356147141,1741965230269,-694.39,8.219e-05,2]
[356147142,1741965230292,-500.0,8.219e-05,2]
[356147143,1741965230314,-500.0,8.219e-05,2]
[356147144,1741965230337,-3577.28,8.219e-05,2]
[356147145,1741965230359,-1280.18,8.219e-05,2]
[356147146,1741965230380,-500.0,8.219e-05,2]
[356147147,1741965230402,-500.0,8.219e-05,2]
[356147148,1741965230424,-500.0,8.219e-05,2]
[356147149,1741965230446,-6531.51,8.219e-05,2]
[356147150,1741965230467,-500.0,8.219e-05,2]
[356147151,1741965230672,-500.0,8.219e-05,2]
[356147152,1741965230695,-500.0,8.219e-05,2]
[356147153,1741965230717,-590.79,8.219e-05,2]
[356147154,1741965230741,-500.0,8.219e-05,2]
[356147155,1741965230762,-500.0,8.219e-05,2]
[356147156,1741965230783,-500.0,8.219e-05,2]
[356147157,1741965230804,-1328.96,8.219e-05,2]
[356147158,1741965230824,-500.0,8.219e-05,2]
[356147159,1741965230844,-599.99,8.219e-05,2]
[356147160,1741965230871,-10433.48,8.219e-05,2]
[356147161,1741965230893,-500.0,8.219e-05,2]
[356147162,1741965230913,-500.0,8.219e-05,2]
[356147163,1741965230935,-500.0,8.219e-05,2]
[356147164,1741965230957,-500.0,8.219e-05,2]
[356147165,1741965230979,-500.0,8.219e-05,2]
[356147166,1741965231003,-6277.69,8.219e-05,2]
[356147167,1741965231024,-500.0,8.219e-05,2]
[356147168,1741965231045,-500.0,8.219e-05,2]
[356147169,1741965231068,-500.0,8.219e-05,2]
[356147170,1741965231090,-236125.29,8.219e-05,2]
[356147171,1741965231113,-500.0,8.219e-05,2]
[356147172,1741965231135,-500.0,8.219e-05,2]
[356147173,1741965231158,-500.0,8.219e-05,2]
[356147174,1741965231181,-500.0,8.219e-05,2]
[356147175,1741965231203,-500.0,8.219e-05,2]
[356147176,1741965231225,-500.0,8.219e-05,2]
[356147177,1741965231247,-500.0,8.219e-05,2]
[356147178,1741965231270,-500.0,8.219e-05,2]
[356147179,1741965231292,-500.0,8.219e-05,2]
[356147180,1741965231313,-500.0,8.219e-05,2]
[356147181,1741965231335,-500.0,8.219e-05,2]
[356147182,1741965231356,-500.0,8.219e-05,2]
[356147183,1741965231379,-500.0,8.219e-05,2]
[356147184,1741965231401,-8230.4,8.219e-05,2]
[356147185,1741965231423,-500.0,8.219e-05,2]
[356147186,1741965231444,-666.0,8.219e-05,2]
[356147187,1741965231465,-605.63,8.219e-05,2]
[356147188,1741965231488,-1124.81,8.219e-05,2]
[356147189,1741965231510,-500.0,8.219e-05,2]
[356147190,1741965231530,-512.04164007,8.219e-05,2]
[356147191,1741965231551,-596.17,8.219e-05,2]
[356147192,1741965231573,-500.0,8.219e-05,2]
[356147193,1741965231594,-4370.3,8.219e-05,2]
[356147194,1741965231615,-1070.25,8.219e-05,2]
[356147195,1741965231636,-500.0,8.219e-05,2]
[356147196,1741965231658,-1166.9,8.219e-05,2]
[356147197,1741965231679,-500.0,8.219e-05,2]
[356147198,1741965231700,-500.0,8.219e-05,2]
[356147199,1741965231721,-500.0,8.219e-05,2]
[356147200,1741965231743,-500.0,8.219e-05,2]
[356147201,1741965231764,-17037.1,8.219e-05,2]
[356147202,1741965231786,-635.79,8.219e-05,2]
[356147203,1741965231807,-500.0,8.219e-05,2]
[356147204,1741965231829,-500.0,8.219e-05,2]
[356147205,1741965231851,-12880.94,8.219e-05,2]
[356147206,1741965231876,-500.0,8.219e-05,2]
[356147207,1741965231898,-500.0,8.219e-05,2]
[356147208,1741965231919,-565.02,8.219e-05,2]
[356147209,1741965231943,-500.0,8.219e-05,2]
[356147210,1741965231963,-500.0,8.219e-05,2]
[356147211,1741965231987,-670.17,8.219e-05,2]
[356147212,1741965232010,-1160.24,8.219e-05,2]
[356147213,1741965232033,-500.0,8.219e-05,2]
[356147214,1741965232056,-4905.28,8.219e-05,2]
[356147215,1741965232077,-500.0,8.219e-05,2]
[356147216,1741965232099,-527.41102378,8.219e-05,2]
[356147217,1741965232122,-595.75,8.219e-05,2]
[356147218,1741965232145,-500.0,8.219e-05,2]
[356147219,1741965232168,-586.45,8.219e-05,2]
[356147220,1741965232190,-500.0,8.219e-05,2]
[356147221,1741965232211,-500.0,8.219e-05,2]
[356147222,1741965232233,-501.90934892,8.219e-05,2]
[356147223,1741965232256,-1475.59,8.219e-05,2]
[356147224,1741965232276,-6645.75,8.219e-05,2]
[356147225,1741965232297,-500.0,8.219e-05,2]
[356147226,1741965232318,-500.0,8.219e-05,2]
[356147227,1741965232339,-500.0,8.219e-05,2]
[356147228,1741965232361,-1129.19,8.219e-05,2]
[356147229,1741965232382,-500.0,8.219e-05,2]
[356147230,1741965232403,-500.0,8.219e-05,2]
[356147231,1741965232425,-4139.87,8.219e-05,2]
[356147232,1741965232445,-500.0,8.219e-05,2]
[356147233,1741965232466,-500.0,8.219e-05,2]
[356147234,1741965232488,-641.65,8.219e-05,2]
[356147235,1741965232508,-3137.23,8.219e-05,2]
[356147236,1741965232528,-836.85,8.219e-05,2]
[356147237,1741965232549,-500.0,8.219e-05,2]
[356147238,1741965232570,-500.0,8.219e-05,2]
[356147239,1741965232591,-565.61,8.219e-05,2]
[356147240,1741965232612,-500.0,8.219e-05,2]
[356147241,1741965232634,-665.66,8.219e-05,2]
[356147242,1741965232655,-626.04,8.219e-05,2]
[356147243,1741965232675,-8057.58,8.219e-05,2]
[356147244,1741965232696,-500.0,8.219e-05,2]
[356147245,1741965232716,-510.47236398,8.219e-05,2]
[356147246,1741965232738,-500.0,8.219e-05,2]
[356147247,1741965232760,-500.0,8.219e-05,2]
[356147248,1741965232781,-2103.96,8.219e-05,2]
[356147249,1741965232802,-1288.35,8.219e-05,2]
[356147250,1741965232822,-511.01697191,8.219e-05,2]
[356147251,1741965232844,-500.0,8.219e-05,2]
[356147252,1741965232868,-500.0,8.219e-05,2]
[356147253,1741965232891,-5215.04,8.219e-05,2]
[356147254,1741965232913,-500.0,8.219e-05,2]
[356147255,1741965232937,-19545.45,8.219e-05,2]
[356147256,1741965232961,-26989.19,8.219e-05,2]
[356147257,1741965232983,-500.0,8.219e-05,2]
[356147258,1741965233006,-500.0,8.219e-05,2]
[356147259,1741965233028,-500.0,8.219e-05,2]
[356147260,1741965233050,-500.0,8.219e-05,2]
[356147261,1741965233071,-500.0,8.219e-05,2]
[356147262,1741965233093,-653.59,8.219e-05,2]
[356147263,1741965233114,-507.90583032,8.219e-05,2]
[356147264,1741965233137,-500.0,8.219e-05,2]
[356147265,1741965233158,-500.0,8.219e-05,2]
[356147266,1741965233181,-500.0,8.219e-05,2]
[356147267,1741965233204,-9273.82,8.219e-05,2]
[356147268,1741965233226,-194.25564128,8.219e-05,2]
[356147269,1741965233252,-1786.14,8.219e-05,2]
[356147270,1741965233275,-3571.58,8.219e-05,2]
[356147271,1741965233297,-4573.57,8.219e-05,2]
[356147272,1741965233319,-1000.0,8.25e-05,2]
[356147273,1741965233343,-864.57556617,8.287e-05,2]
[356147274,1741965233365,-500.0,8.298e-05,2]
[356147275,1741965233389,-158.4111736,8.3e-05,2]
[356147276,1741965233412,-559.9647179,8.3e-05,2]
[356147277,1741965233435,-153.0,8.35e-05,2]
[356147278,1741965233458,-153.0,8.35e-05,2]
[356147279,1741965233481,-32122.76752021,8.429e-05,2]
[356147280,1741965233508,-500.0,8.493e-05,2]
[356147281,1741965233529,-500.0,8.493e-05,2]
[356147282,1741965233550,-500.0,8.493e-05,2]
[356147283,1741965233571,-500.0,8.493e-05,2]
[356147284,1741965233592,-500.0,8.493e-05,2]
[356147285,1741965233614,-570.89,8.493e-05,2]
[356147286,1741965233636,-667.75,8.493e-05,2]
[356147287,1741965233658,-500.0,8.493e-05,2]
[356147288,1741965233679,-151.45589968,8.493e-05,2]
[356147289,1741965233700,-500.0,8.493e-05,2]
[356147290,1741965233721,-500.0,8.493e-05,2]
[356147291,1741965233744,-511.11365252,8.493e-05,2]
[356147292,1741965233765,-500.0,8.493e-05,2]
[356147293,1741965233787,-624.91,8.493e-05,2]
[356147294,1741965233808,-500.0,8.493e-05,2]
[356147295,1741965233829,-500.0,8.493e-05,2]
[356147296,1741965233852,-500.0,8.493e-05,2]
[356147297,1741965233877,-500.0,8.493e-05,2]
[356147298,1741965233899,-500.0,8.493e-05,2]
[356147299,1741965233921,-500.0,8.493e-05,2]
[356147300,1741965233945,-672.42,8.493e-05,2]
[356147301,1741965233968,-500.0,8.493e-05,2]
[356147302,1741965233989,-500.0,8.493e-05,2]
[356147303,1741965234011,-630.56,8.493e-05,2]
[356147304,1741965234032,-500.0,8.493e-05,2]
[356147305,1741965234054,-500.0,8.493e-05,2]
[356147306,1741965234076,-500.0,8.493e-05,2]
[356147307,1741965234099,-500.0,8.493e-05,2]
[356147308,1741965234121,-500.0,8.493e-05,2]
[356147309,1741965234144,-912.99,8.493e-05,2]
[356147310,1741965234166,-683.86,8.493e-05,2]
[356147311,1741965234191,-558.83,8.493e-05,2]
[356147312,1741965234213,-540.8,8.493e-05,2]
[356147313,1741965234238,-500.0,8.493e-05,2]
[356147314,1741965234260,-568.33,8.493e-05,2]
[356147315,1741965234283,-1414.14,8.493e-05,2]
[356147316,1741965234306,-500.0,8.493e-05,2]
[356147317,1741965234328,-500.0,8.493e-05,2]
[356147318,1741965234351,-1940.05,8.493e-05,2]
[356147319,1741965234373,-799.52,8.493e-05,2]
[356147320,1741965234394,-500.0,8.493e-05,2]
[356147321,1741965234416,-500.0,8.493e-05,2]
[356147322,1741965234439,-637.86,8.493e-05,2]
[356147323,1741965234461,-500.0,8.493e-05,2]
[356147324,1741965234482,-150.61678541,8.493e-05,2]
[356147325,1741965234505,-500.0,8.493e-05,2]
[356147326,1741965234527,-500.0,8.493e-05,2]
[356147327,1741965234551,-500.0,8.493e-05,2]
[356147328,1741965234752,-500.0,8.493e-05,2]
[356147329,1741965234778,-500.0,8.493e-05,2]
[356147330,1741965234802,-672.17,8.493e-05,2]
[356147331,1741965234826,-166.17032132,8.493e-05,2]
[356147332,1741965234849,-500.0,8.493e-05,2]
[356147333,1741965234881,-500.0,8.493e-05,2]
[356147334,1741965234906,-500.0,8.493e-05,2]
[356147335,1741965234929,-500.0,8.493e-05,2]
[356147336,1741965234952,-1343.46,8.493e-05,2]
[356147337,1741965234976,-500.0,8.493e-05,2]
[356147338,1741965235002,-500.0,8.493e-05,2]
[356147339,1741965235025,-500.0,8.493e-05,2]
[356147340,1741965235049,-702.72,8.493e-05,2]
[356147341,1741965235072,-844.76,8.493e-05,2]
[356147342,1741965235096,-500.0,8.493e-05,2]
[356147343,1741965235118,-500.0,8.493e-05,2]
[356147344,1741965235139,-500.0,8.493e-05,2]
[356147345,1741965235162,-1239.12,8.493e-05,2]
[356147346,1741965235185,-531.3797548,8.493e-05,2]
[356147347,1741965235208,-373.39625312,8.493e-05,2]
[356147348,1741965235231,-318.52,8.493e-05,2]
[356147349,1741965235254,-500.0,8.493e-05,2]
[356147350,1741965235275,-500.0,8.493e-05,2]
[356147351,1741965235297,-500.0,8.493e-05,2]
[356147352,1741965235320,-500.0,8.493e-05,2]
[356147353,1741965235342,-500.0,8.493e-05,2]
[356147354,1741965235364,-978.21,8.493e-05,2]
[356147355,1741965235385,-500.0,8.493e-05,2]
[356147356,1741965235408,-500.0,8.493e-05,2]
[356147357,1741965235430,-597.37,8.493e-05,2]
[356147358,1741965235457,-500.0,8.493e-05,2]
[356147359,1741965235479,-500.0,8.493e-05,2]
[356147360,1741965235503,-715.8,8.493e-05,2]
[356147361,1741965235525,-500.0,8.493e-05,2]
[356147362,1741965235547,-510.70375087,8.493e-05,2]
[356147363,1741965235569,-500.0,8.493e-05,2]
[356147364,1741965235591,-689.47,8.493e-05,2]
[356147365,1741965235614,-500.0,8.493e-05,2]
[356147366,1741965235635,-500.0,8.493e-05,2]
[356147367,1741965235657,-500.0,8.493e-05,2]
[356147368,1741965235678,-500.0,8.493e-05,2]
[356147369,1741965235699,-500.0,8.493e-05,2]
[356147370,1741965235721,-500.0,8.493e-05,2]
[356147371,1741965235744,-500.0,8.493e-05,2]
[356147372,1741965235766,-500.0,8.493e-05,2]
[356147373,1741965235788,-748.33,8.493e-05,2]
[356147374,1741965235809,-500.0,8.493e-05,2]
[356147375,1741965235831,-1388.0,8.493e-05,2]
[356147376,1741965235853,-500.0,8.493e-05,2]
[356147377,1741965235879,-603.69,8.493e-05,2]
[356147378,1741965235902,-500.0,8.493e-05,2]
[356147379,1741965235924,-500.0,8.493e-05,2]
[356147380,1741965235948,-500.0,8.493e-05,2]
[356147381,1741965235970,-500.0,8.493e-05,2]
[356147382,1741965235995,-500.0,8.493e-05,2]
[356147383,1741965236017,-500.0,8.493e-05,2]
[356147384,1741965236040,-500.0,8.493e-05,2]
[356147385,1741965236063,-500.0,8.493e-05,2]
[356147386,1741965236086,-500.0,8.493e-05,2]
[356147387,1741965236108,-500.0,8.493e-05,2]
[356147388,1741965236131,-503.89,8.493e-05,2]
[356147389,1741965236153,-500.0,8.493e-05,2]
[356147390,1741965236176,-586.6,8.493e-05,2]
[356147391,1741965236200,-500.0,8.493e-05,2]
[356147392,1741965236223,-500.0,8.493e-05,2]
[356147393,1741965236246,-500.0,8.493e-05,2]
[356147394,1741965236268,-500.0,8.493e-05,2]
[356147395,1741965236291,-500.0,8.493e-05,2]
[356147396,1741965236314,-500.0,8.493e-05,2]
[356147397,1741965236335,-500.0,8.493e-05,2]
[356147398,1741965236357,-509.94172701,8.493e-05,2]
[356147399,1741965236379,-500.0,8.493e-05,2]
[356147400,1741965236401,-828.43,8.493e-05,2]
[356147401,1741965236424,-500.0,8.493e-05,2]
[356147402,1741965236452,-1146.79,8.493e-05,2]
[356147403,1741965236476,-500.0,8.493e-05,2]
[356147404,1741965236499,-205.88523617,8.493e-05,2]
[356147405,1741965236521,-714.97,8.493e-05,2]
[356147406,1741965236542,-150.38508899,8.493e-05,2]
[356147407,1741965236564,-635.76,8.493e-05,2]
[356147408,1741965236586,-500.0,8.493e-05,2]
[356147409,1741965236609,-500.0,8.493e-05,2]
[356147410,1741965236637,-500.0,8.493e-05,2]
[356147411,1741965236660,-500.0,8.493e-05,2]
[356147412,1741965236682,-1301.99,8.493e-05,2]
[356147413,1741965236705,-553.5,8.493e-05,2]
[356147414,1741965236727,-500.0,8.493e-05,2]
[356147415,1741965236748,-615.14,8.493e-05,2]
[356147416,1741965236771,-588.43,8.493e-05,2]
[356147417,1741965236793,-1528.76,8.493e-05,2]
[356147418,1741965236815,-830.55,8.493e-05,2]
[356147419,1741965236837,-500.0,8.493e-05,2]
[356147420,1741965236863,-500.0,8.493e-05,2]
[356147421,1741965236886,-18947.76,8.493e-05,2]
[356147422,1741965236910,-500.0,8.493e-05,2]
[356147423,1741965236934,-1022.83,8.493e-05,2]
[356147424,1741965236958,-500.0,8.493e-05,2]
[356147425,1741965236981,-500.0,8.493e-05,2]
[356147426,1741965237005,-500.0,8.493e-05,2]
[356147427,1741965237030,-1325.72,8.493e-05,2]
[356147428,1741965237053,-818.29,8.493e-05,2]
[356147429,1741965237076,-500.0,8.493e-05,2]
[356147430,1741965237098,-500.0,8.493e-05,2]
[356147431,1741965237123,-500.0,8.493e-05,2]
[356147432,1741965237147,-500.0,8.493e-05,2]
[356147433,1741965237170,-945.05,8.493e-05,2]
[356147434,1741965237193,-500.0,8.493e-05,2]
[356147435,1741965237217,-869.54,8.493e-05,2]
[356147436,1741965237240,-565.24,8.493e-05,2]
[356147437,1741965237265,-2417.43,8.493e-05,2]
[356147438,1741965237287,-840.47,8.493e-05,2]
[356147439,1741965237310,-500.0,8.493e-05,2]
[356147440,1741965237331,-500.0,8.493e-05,2]
[356147441,1741965237353,-694.39,8.493e-05,2]
[356147442,1741965237376,-500.0,8.493e-05,2]
[356147443,1741965237399,-500.0,8.493e-05,2]
[356147444,1741965237422,-3577.28,8.493e-05,2]
[356147445,1741965237444,-1280.18,8.493e-05,2]
[356147446,1741965237467,-307.82,8.493e-05,2]
[356147447,1741965237491,-6531.51,8.493e-05,2]
[356147448,1741965237515,-500.0,8.493e-05,2]
[356147449,1741965237538,-500.0,8.493e-05,2]
[356147450,1741965237561,-500.0,8.493e-05,2]
[356147451,1741965237584,-500.0,8.493e-05,2]
[356147452,1741965237607,-500.0,8.493e-05,2]
[356147453,1741965237631,-590.79,8.493e-05,2]
[356147454,1741965237653,-500.0,8.493e-05,2]
[356147455,1741965237675,-200.95054532,8.493e-05,2]
[356147456,1741965237698,-1328.96,8.493e-05,2]
[356147457,1741965237720,-500.0,8.493e-05,2]
[356147458,1741965237744,-599.99,8.493e-05,2]
[356147459,1741965237769,-10433.48,8.493e-05,2]
[356147460,1741965237795,-510.33907927,8.493e-05,2]
[356147461,1741965237817,-500.0,8.493e-05,2]
[356147462,1741965237839,-500.0,8.493e-05,2]
[356147463,1741965237863,-500.0,8.493e-05,2]
[356147464,1741965237885,-500.0,8.493e-05,2]
[356147465,1741965237908,-6277.69,8.493e-05,2]
[356147466,1741965237931,-500.0,8.493e-05,2]
[356147467,1741965237953,-436.18549233,8.493e-05,2]
[356147468,1741965237975,-500.0,8.493e-05,2]
[356147469,1741965237999,-224924.58944197,8.493e-05,2]
[356147471,1741965340361,-500.0,8.018e-05,2]
[356147472,1741965340385,-500.0,8.018e-05,2]
[356147473,1741965340411,-500.0,8.018e-05,2]
[356147474,1741965340436,-500.0,8.018e-05,2]
[356147475,1741965340462,-500.0,8.018e-05,2]
[356147476,1741965340487,-500.0,8.018e-05,2]
[356147477,1741965340512,-500.0,8.018e-05,2]
[356147478,1741965340536,-500.0,8.018e-05,2]